[Event "Kuwait Championship Stage-I 2024"]
[Site "Qadsiya"]
[Date "2024.02.01"]
[Round "9.10"]
[White "Husain, Sulaiman A.M."]
[Black "Alqattan, Osamah"]
[Result "1/2-1/2"]
[ECO "C41"]
[WhiteElo "1636"]
[BlackElo "1239"]
[Annotator "NA"]
[PlyCount "109"]
[EventDate "2024.01.22"]
[EventType "swiss"]
[EventCountry "KUW"]
[SourceTitle "playchess.com"]
[Source "ChessBase"]
[SourceQuality "1"]
[TimeControl "5400+30"]

1. e4 {[%emt 0:00:02]} e5 {[%emt 0:14:37]} 2. Nf3 {[%emt 0:00:07]} d6 {[%emt 0:01:03]} 3. d4 {[%emt 0:00:08]} exd4 {[%emt 0:02:17]} 4. Nxd4 {[%emt 0:00:04]} Nf6 {[%emt 0:00:21]} 5. Nc3 {[%emt 0:00:19]} Be7 {[%emt 0:01:14]} 6. Bd3 {[%emt 0:02:38]} O-O {[%emt 0:00:52]} 7. O-O {[%emt 0:00:25]} Nbd7 {[%emt 0:00:34]} 8. Nf5 {[%emt 0:11:59]} Ne5 {[%emt 0:02:03]} 9. Nxe7+ {[%emt 0:01:36]} Qxe7 {[%emt 0:00:22]} 10. Bg5 {[%emt 0:01:12]} h6 {[%emt 0:00:21]} 11. Nd5 {[%emt 0:00:10]} Qd8 {[%emt 0:02:42]} 12. Nxf6+ {[%emt 0:00:26]} gxf6 {[%emt 0:00:13]} 13. Bxh6 {[%emt 0:00:03]} Re8 {[%emt 0:09:50]} 14. h3 {[%emt 0:10:53]} Kh7 {[%emt 0:00:38]} 15. Bf4 {[%emt 0:04:25]} Kg6 {[%emt 0:01:52]} 16. Re1 {[%emt 0:01:37]} Rh8 {[%emt 0:01:14]} 17. Re3 {[%emt 0:00:22]} Kg7 {[%emt 0:00:57]} 18. Rg3+ {[%emt 0:02:23]} Kf8 {[%emt 0:00:09]} 19. Bxe5 {[%emt 0:02:54]} fxe5 {[%emt 0:00:29]} 20. Qf3 {[%emt 0:02:12]} Be6 {[%emt 0:09:17]} 21. Rd1 {[%emt 0:07:42]} a6 {[%emt 0:09:08]} 22. a4 {[%emt 0:03:16]} Rh7 {[%emt 0:02:49]} 23. Qe3 {[%emt 0:01:32]} Qh4 {[%emt 0:03:39]} 24. Qg5 {[%emt 0:01:31]} f6 {[%emt 0:00:50]} 25. Qxh4 {[%emt 0:01:05]} Rxh4 {[%emt 0:00:21]} 26. Kh2 {[%emt 0:04:25]} Kf7 {[%emt 0:05:25]} 27. Rh1 {[%emt 0:09:01]} b5 {[%emt 0:01:08]} 28. axb5 {[%emt 0:00:06]} axb5 {[%emt 0:00:16]} 29. Bxb5 {[%emt 0:00:57]} Rb8 {[%emt 0:00:33]} 30. Bd3 {[%emt 0:02:26]} Rxb2 {[%emt 0:00:18]} 31. Ra1 {[%emt 0:01:59]} Rb7 {[%emt 0:03:54]} 32. Re3 {[%emt 0:01:10]} d5 {[%emt 0:01:40]} 33. exd5 {[%emt 0:00:44]} Bxd5 {[%emt 0:00:25]} 34. g3 {[%emt 0:00:36]} Rd4 {[%emt 0:03:05]} 35. h4 {[%emt 0:00:32]} e4 {[%emt 0:01:59]} 36. Be2 {[%emt 0:02:30]} Rb2 {[%emt 0:21:55]} 37. Rd1 {[%emt 0:25:33]} c5 {[%emt 0:00:00]} 38. c4 {[%emt 0:00:00]} Rxd1 {[%emt 0:00:00]} 39. Bxd1 {[%emt 0:00:00]} Bxc4 {[%emt 0:00:00]} 40. Rxe4 {[%emt 0:00:00]} Rxf2+ {[%emt 0:00:00]} 41. Kg1 {[%emt 0:00:00]} Rf1+ {[%emt 0:00:00]} 42. Kg2 {[%emt 0:00:00]} Rxd1 {[%emt 0:00:00]} 43. Rxc4 {[%emt 0:00:00]} Rd5 {[%emt 0:00:00]} 44. g4 {[%emt 0:00:00]} Kg6 {[%emt 0:00:00]} 45. Kg3 {[%emt 0:00:00]} f5 {[%emt 0:00:22]} 46. g5 {[%emt 0:00:00]} Rd3+ {[%emt 0:00:47]} 47. Kf4 {[%emt 0:00:00]} Rd5 {[%emt 0:01:45]} 48. Ra4 {[%emt 0:00:00]} Kh5 {[%emt 0:02:00]} 49. Rc4 {[%emt 0:00:00]} Rd4+ {[%emt 0:01:00]} 50. Rxd4 {[%emt 0:00:00]} cxd4 {[%emt 0:00:05]} 51. Kf3 {[%emt 0:00:00]} Kg6 {[%emt 0:00:14]} 52. Ke2 {[%emt 0:00:00]} f4 {[%emt 0:00:32]} 53. Kf3 {[%emt 0:00:00]} Kf5 {[%emt 0:00:14]} 54. g6 {[%emt 0:00:00]} Kxg6 {[%emt 0:00:03]} 55. Kxf4 {[%emt 0:00:00]} 1/2-1/2

[Event "Kuwait Championship Stage-I 2024"]
[Site "Qadsiya"]
[Date "2024.02.01"]
[Round "9.11"]
[White "Almuhaini, Abdulaziz"]
[Black "Alasfour, Zaid"]
[Result "1-0"]
[ECO "B08"]
[WhiteElo "1374"]
[BlackElo "1188"]
[Annotator "NA"]
[PlyCount "79"]
[EventDate "2024.01.22"]
[EventType "swiss"]
[EventCountry "KUW"]
[SourceTitle "playchess.com"]
[Source "ChessBase"]
[SourceQuality "1"]
[TimeControl "5400+30"]

1. e4 {[%emt 0:08:20]} d6 {[%emt 0:00:07]} 2. Nf3 {[%emt 0:01:11]} Nf6 {[%emt 0:00:09]} 3. Nc3 {[%emt 0:00:28]} g6 {[%emt 0:00:17]} 4. Be2 {[%emt 0:00:54]} Bg7 {[%emt 0:00:06]} 5. O-O {[%emt 0:00:20]} O-O {[%emt 0:00:25]} 6. d4 {[%emt 0:00:43]} Bg4 {[%emt 0:01:44]} 7. h3 {[%emt 0:01:21]} Bxf3 {[%emt 0:00:08]} 8. Bxf3 {[%emt 0:00:11]} e5 {[%emt 0:00:02]} 9. Be3 {[%emt 0:01:28]} Nbd7 {[%emt 0:01:57]} 10. dxe5 {[%emt 0:07:56]} dxe5 {[%emt 0:00:30]} 11. Qd2 {[%emt 0:00:51]} Nb6 {[%emt 0:00:11]} 12. Qc1 {[%emt 0:03:36]} Qe7 {[%emt 0:01:20]} 13. Rd1 {[%emt 0:02:56]} Rfd8 {[%emt 0:01:08]} 14. Bg5 {[%emt 0:01:52]} Qe6 {[%emt 0:03:59]} 15. Qe3 {[%emt 0:04:41]} Rxd1+ {[%emt 0:10:34]} 16. Rxd1 {[%emt 0:00:34]} Ne8 {[%emt 0:00:25]} 17. Bg4 {[%emt 0:12:08]} Qc6 {[%emt 0:02:17]} 18. b3 {[%emt 0:05:23]} f6 {[%emt 0:03:12]} 19. Bh4 {[%emt 0:02:19]} Bf8 {[%emt 0:02:44]} 20. Qd3 {[%emt 0:03:44]} Bd6 {[%emt 0:11:31]} 21. Nd5 {[%emt 0:02:35]} Nxd5 {[%emt 0:01:45]} 22. exd5 {[%emt 0:02:12]} Qb6 {[%emt 0:01:58]} 23. Be6+ {[%emt 0:02:29]} Kg7 {[%emt 0:00:43]} 24. Kf1 {[%emt 0:04:08]} Bc5 {[%emt 0:02:39]} 25. c3 {[%emt 0:02:57]} a5 {[%emt 0:00:29]} 26. Qf3 {[%emt 0:02:55]} Rd8 {[%emt 0:02:52]} 27. g4 {[%emt 0:04:34]} Qd6 {[%emt 0:04:32]} 28. Re1 {[%emt 0:03:52]} Qf8 {[%emt 0:07:35]} 29. Rxe5 {[%emt 0:02:02]} g5 {[%emt 0:09:23]} 30. Bxg5 {[%emt 0:01:19]} fxg5 {[%emt 0:01:42]} 31. Rxg5+ {[%emt 0:00:24]} Kh6 {[%emt 0:00:09]} 32. Rh5+ {[%emt 0:00:56]} Kg7 {[%emt 0:06:37]} 33. Bf5 {[%emt 0:02:05]} h6 {[%emt 0:05:41]} 34. g5 {[%emt 0:01:26]} Rd6 {[%emt 0:02:34]} 35. gxh6+ {[%emt 0:02:06]} Rxh6 {[%emt 0:03:23]} 36. Qg3+ {[%emt 0:01:28]} Kh8 {[%emt 0:01:51]} 37. Qg6 {[%emt 0:02:55]} Rxh5 {[%emt 0:01:33]} 38. Qxh5+ {[%emt 0:00:23]} Kg7 {[%emt 0:00:17]} 39. Qg6+ {[%emt 0:00:12]} Kh8 {[%emt 0:00:18]} 40. Qh7# {[%emt 0:08:36]} 1-0